bitfinex/quotes_SOLUSD_20250602
["timestamp","ask_amount","ask_price","bid_price","bid_amount"]
[1748862722242,32.21068905,154.39,154.31,113.75150303]
[1748862722447,18.47104163,154.36,154.31,153.69150303]
[1748862722625,18.64964886,154.37,154.31,153.69150303]
[1748862722949,18.47104163,154.36,154.31,153.69150303]
[1748862723239,18.47104163,154.36,154.31,169.89265655]
[1748862723451,18.47104163,154.33,154.31,95.2804614]
[1748862724656,18.47104163,154.34,154.31,95.2804614]
[1748862725141,77.08069049,154.36,154.31,129.95265655]
[1748862725445,37.12069049,154.36,154.31,129.95265655]
[1748862728327,18.47104163,154.35,154.31,129.95265655]
[1748862729246,37.12069049,154.37,154.32,18.47104163]
[1748862729423,37.12069049,154.37,154.32,107.27104163]
[1748862729828,10.44,154.38,154.35,18.47104163]
[1748862730040,10.44,154.38,154.36,18.47104163]
[1748862730344,10.44,154.38,154.36,107.27104163]
[1748862731233,28.91104163,154.38,154.36,88.8]
[1748862731435,18.47104163,154.37,154.36,95.27836227]
[1748862731638,28.91104163,154.38,154.36,95.27836227]
[1748862732645,28.91104163,154.38,154.36,88.8]
[1748862733459,37.12069049,154.37,154.36,88.8]
[1748862733635,37.12069049,154.37,154.33,95.27948195]
[1748862733826,18.47104163,154.35,154.33,88.8]
[1748862734633,18.47104163,154.34,154.33,88.8]
[1748862738251,10.44,154.34,154.33,88.8]
[1748862739553,10.44,154.34,154.33,95.27962159]
[1748862739787,10.44,154.34,154.33,113.75066322]
[1748862740445,10.44,154.38,154.34,88.8]
[1748862740630,10.44,154.38,154.36,18.47104163]
[1748862740831,10.44,154.38,154.34,154.74]
[1748862741051,10.44,154.38,154.36,18.47104163]
[1748862741457,10.44,154.38,154.36,107.27104163]
[1748862742146,10.44,154.38,154.37,6.4779426]
[1748862742933,10.44,154.38,154.37,95.2779426]
[1748862745651,10.44,154.38,154.37,113.74898423]
[1748862746556,0.8931563,154.41,154.37,113.74898423]
[1748862746765,0.8931563,154.41,154.38,18.47104163]
[1748862746941,0.8931563,154.41,154.38,107.27104163]
[1748862747758,0.8931563,154.41,154.39,6.47710343]
[1748862747943,0.8931563,154.41,154.38,95.27734818]
[1748862748143,18.47104163,154.39,154.38,95.27734818]
[1748862748657,0.8931563,154.41,154.38,95.27734818]
[1748862749264,0.8931563,154.41,154.38,113.74838981]
[1748862749641,0.8931563,154.41,154.4,44.47104163]
[1748862749859,0.8931563,154.41,154.4,173.80266719]
[1748862750172,18.47104163,154.49,154.43,26.0]
[1748862750375,18.47104163,154.5,154.45,18.47104163]
[1748862750566,10.42,154.51,154.46,18.47104163]
[1748862750771,18.47104163,154.5,154.46,18.47104163]
[1748862751168,10.42,154.51,154.47,18.47104163]
[1748862751477,18.47104163,154.5,154.47,88.8]
[1748862751692,18.47104163,154.49,154.47,88.8]
[1748862752177,18.47104163,154.49,154.47,95.27359375]
[1748862752364,18.47104163,154.49,154.47,88.8]
[1748862752561,18.64964886,154.5,154.47,88.8]
[1748862752760,18.47104163,154.48,154.47,88.8]
[1748862753963,18.47104163,154.49,154.47,88.8]
[1748862754365,18.64964886,154.5,154.47,95.27374345]
[1748862754582,18.47104163,154.49,154.47,95.27374345]
[1748862754890,18.47104163,154.49,154.47,88.8]
[1748862755459,37.12069049,154.5,154.47,95.27366855]
[1748862755973,10.42,154.51,154.48,18.47104163]
[1748862756272,10.42,154.51,154.49,18.47104163]
[1748862756476,10.42,154.51,154.5,18.47104163]
[1748862756777,10.42,154.51,154.5,88.8]
[1748862756978,10.42,154.51,154.5,18.47104163]
[1748862757182,10.42,154.51,154.5,107.27104163]
[1748862757986,10.42,154.51,154.5,113.74353353]
[1748862759192,18.64964886,154.55,154.5,113.74353353]
[1748862759193,10.42,154.55,154.5,169.9447633]
[1748862759360,28.89104163,154.55,154.5,169.9447633]
[1748862760191,10.42,154.55,154.51,18.47104163]
[1748862761283,28.89104163,154.55,154.51,18.47104163]
[1748862762768,28.89104163,154.55,154.52,6.47165415]
[1748862763684,10.42,154.55,154.52,24.94269578]
[1748862765575,10.42,154.55,154.52,50.94269578]
[1748862770085,18.47104163,154.53,154.5,88.8]
[1748862770402,18.47104163,154.53,154.5,114.8]
[1748862770699,28.89104163,154.53,154.5,121.27236963]
[1748862771289,18.47104163,154.51,154.48,6.47332988]
[1748862771484,18.47104163,154.49,154.46,6.47416806]
[1748862771903,18.47104163,154.48,154.46,6.47416806]
[1748862772493,18.47104163,154.49,154.46,6.47416806]
[1748862774699,18.47104163,154.48,154.46,6.47416806]
[1748862775077,28.89104163,154.48,154.46,6.47416806]
[1748862775476,28.89104163,154.48,154.46,95.27416806]
[1748862775790,10.42,154.48,154.46,95.27416806]
[1748862776499,18.47104163,154.47,154.45,32.4744255]
[1748862777801,28.89104163,154.48,154.45,32.4744255]
[1748862779487,10.42,154.48,154.45,32.4744255]
[1748862779694,28.89104163,154.48,154.45,32.4744255]
[1748862780989,10.42,154.48,154.45,32.4744255]
[1748862781186,10.42,154.48,154.45,50.94546713]
[1748862781710,10.42,154.48,154.45,67.13193524]
[1748862782409,10.42,154.48,154.47,26.0]
[1748862783909,10.42,154.48,154.47,32.47374894]
[1748862787211,10.42,154.48,154.47,121.27374894]
[1748862790215,47.54069049,154.48,154.45,88.8]
[1748862790390,18.47104163,154.46,154.45,88.8]
[1748862791288,37.12069049,154.46,154.45,88.8]
[1748862791899,18.64964886,154.45,154.42,88.8]
[1748862792102,18.47104163,154.43,154.42,88.8]
[1748862792309,28.89104163,154.43,154.4,95.27657552]
[1748862794202,18.47104163,154.42,154.4,95.27657552]
[1748862796114,10.42,154.43,154.4,95.27657552]
[1748862796320,28.89104163,154.43,154.4,95.27657552]
[1748862799798,28.89104163,154.43,154.4,111.46828536]
[1748862800101,10.42,154.43,154.4,111.46828536]
[1748862800301,10.42,154.43,154.4,129.93932699]
[1748862800711,10.42,154.43,154.4,111.46828536]
[1748862801302,18.47104163,154.42,154.4,111.46828536]
[1748862801802,18.47104163,154.42,154.4,95.27657552]
[1748862802434,18.47104163,154.41,154.4,95.27657552]
[1748862802809,18.47104163,154.42,154.4,95.27657552]
[1748862804027,10.42,154.43,154.4,113.74761715]
[1748862804222,10.42,154.43,154.4,129.93932699]
[1748862806019,10.42,154.43,154.41,18.47104163]
[1748862807912,10.42,154.43,154.42,6.47584509]
[1748862810231,10.42,154.43,154.41,88.8]
[1748862810232,28.89104163,154.43,154.41,88.8]
[1748862810532,18.47104163,154.42,154.4,6.47642823]
[1748862810708,18.47104163,154.41,154.4,6.47642823]
[1748862811513,18.47104163,154.41,154.38,6.47719995]
[1748862811728,18.47104163,154.4,154.38,6.47719995]
[1748862812845,1.6139,154.42,154.38,41.14204906]
[1748862812846,20.08494163,154.42,154.38,41.14204906]
[1748862813019,28.89104163,154.43,154.39,18.47104163]
[1748862813449,28.89104163,154.43,154.4,6.47668393]
[1748862815225,10.42,154.43,154.4,6.47668393]
[1748862815423,28.89104163,154.43,154.4,6.47668393]
[1748862816135,18.47104163,154.43,154.39,48.66986202]
[1748862816331,10.34,154.42,154.39,48.66986202]
[1748862816932,10.34,154.42,154.39,137.46986202]
[1748862818040,60.02354886,154.46,154.41,44.47104163]
[1748862818041,10.34,154.46,154.41,44.47104163]
[1748862818347,10.34,154.46,154.43,18.47104163]
[1748862819115,10.34,154.46,154.45,44.47104163]
[1748862819340,10.34,154.46,154.45,133.27104163]
[1748862819512,10.34,154.46,154.45,114.8]
[1748862820115,10.34,154.46,154.45,121.27458724]
[1748862822643,10.34,154.46,154.45,139.74562887]
[1748862823546,1.5689,154.5,154.45,155.93209698]
[1748862823736,10.34,154.49,154.46,18.47104163]
[1748862824337,10.34,154.49,154.47,18.47104163]
[1748862824653,10.34,154.49,154.48,6.47332988]
[1748862827176,10.34,154.49,154.48,24.94437151]
[1748862827478,10.34,154.49,154.48,6.47332988]
[1748862827648,10.34,154.49,154.48,24.94437151]
[1748862828749,10.34,154.49,154.48,113.74437151]
[1748862830367,10.34,154.49,154.48,139.74437151]
[1748862833258,123.27129274,154.52,154.48,155.92769621]
[1748862833259,104.80025111,154.52,154.48,155.92769621]
[1748862833588,20.05774163,154.54,154.48,155.92769621]
[1748862833589,10.34,154.54,154.51,44.47104163]
[1748862833793,10.34,154.54,154.53,18.47104163]
[1748862833994,10.34,154.54,154.53,88.8]
[1748862834357,2.86118171,154.57,154.53,146.97104163]
[1748862834565,2.86118171,154.57,154.55,18.47104163]
[1748862835387,2.86118171,154.57,154.55,6.47039792]
[1748862835892,2.86118171,154.57,154.55,24.94143955]
[1748862836587,2.86118171,154.57,154.55,6.47039792]
[1748862837495,2.86118171,154.57,154.55,95.27039792]
[1748862838273,2.86118171,154.57,154.55,88.8]
[1748862838475,18.47104163,154.56,154.55,88.8]
[1748862838989,21.33222334,154.57,154.55,88.8]
[1748862839191,21.33222334,154.57,154.55,95.27029266]
[1748862839493,2.86118171,154.57,154.55,88.8]
[1748862839680,21.33222334,154.57,154.55,88.8]
[1748862839875,18.47104163,154.56,154.55,88.8]
[1748862841271,37.12069049,154.56,154.55,88.8]
[1748862842182,18.64964886,154.56,154.55,88.8]
[1748862842385,18.47104163,154.56,154.55,88.8]
[1748862843793,47.42069049,154.56,154.55,88.8]
[1748862844505,28.77104163,154.56,154.55,88.8]
[1748862846281,47.42069049,154.56,154.55,88.8]
[1748862846802,18.64964886,154.55,154.52,88.8]
[1748862846979,18.47104163,154.54,154.52,88.8]
[1748862847175,37.12069049,154.53,154.52,88.8]
[1748862847390,38.76909049,154.53,154.52,88.8]
[1748862848911,38.76909049,154.53,154.47,6.47370983]
[1748862849199,18.47104163,154.5,154.47,121.27370983]
[1748862849385,28.77104163,154.49,154.47,121.27370983]
[1748862849590,10.3,154.49,154.47,121.27370983]
[1748862851889,28.77104163,154.49,154.47,114.8]
[1748862852089,28.77104163,154.49,154.47,121.27354164]
[1748862852607,18.47104163,154.48,154.47,88.8]
[1748862852992,18.47104163,154.48,154.46,6.47412298]
[1748862853697,18.47104163,154.47,154.46,6.47412298]
[1748862854796,18.47104163,154.48,154.46,6.47412298]
[1748862856888,37.12069049,154.47,154.38,22.67133047]
[1748862857191,18.47104163,154.44,154.4,18.47104163]
[1748862857500,28.77104163,154.44,154.4,18.47104163]
[1748862857718,10.3,154.44,154.4,18.47104163]
[1748862858025,28.77104163,154.44,154.4,44.47104163]
[1748862858599,28.77104163,154.44,154.41,6.47626449]
[1748862859890,10.3,154.44,154.43,26.0]
[1748862860526,10.3,154.44,154.43,32.47542575]
[1748862863327,10.3,154.44,154.43,6.47542575]
[1748862863535,28.77104163,154.44,154.43,32.47542575]
[1748862863905,10.3,154.44,154.43,32.47542575]
[1748862864103,10.3,154.44,154.43,139.74646738]
[1748862864601,10.3,154.48,154.43,155.93503177]
[1748862864923,10.3,154.48,154.45,18.47104163]
[1748862865920,10.3,154.48,154.46,6.47416806]
[1748862866301,10.3,154.48,154.46,95.27416806]
[1748862868930,10.3,154.48,154.46,139.74520969]
[1748862871255,10.3,154.48,154.46,121.27416806]
[1748862872232,28.77104163,154.48,154.46,121.27416806]
[1748862872760,28.77104163,154.48,154.46,95.27416806]
[1748862872959,18.47104163,154.47,154.46,95.27416806]
[1748862875070,18.47104163,154.47,154.46,88.8]
[1748862876653,18.47104163,154.47,154.46,95.27416806]
[1748862879545,18.47104163,154.47,154.46,88.8]
[1748862880174,18.47104163,154.47,154.46,95.27416806]
[1748862880552,10.3,154.48,154.46,95.27408681]
[1748862880757,18.47104163,154.47,154.46,95.27408681]
[1748862880966,18.47104163,154.47,154.46,88.8]
[1748862883174,18.47104163,154.47,154.46,95.27416806]
[1748862883675,18.47104163,154.47,154.46,88.8]
[1748862883874,37.12069049,154.47,154.44,88.8]
[1748862884077,18.47104163,154.45,154.44,88.8]
[1748862884260,18.47104163,154.47,154.44,95.27500647]
[1748862888094,10.28,154.46,154.44,95.27500647]
[1748862889185,28.75104163,154.46,154.44,95.27500647]
[1748862890088,10.28,154.46,154.44,95.27500647]
[1748862893701,28.75104163,154.46,154.44,95.27500647]
[1748862897000,37.12069049,154.45,154.44,88.8]
[1748862897803,37.12069049,154.45,154.4,26.0]
[1748862897804,18.64964886,154.44,154.4,6.47652647]
[1748862897976,18.47104163,154.41,154.4,95.27652647]
[1748862898177,28.75104163,154.41,154.4,95.27652647]
[1748862898486,28.75104163,154.41,154.4,88.8]
[1748862898899,28.75104163,154.41,154.4,87.8]
[1748862900509,47.40069049,154.41,154.4,87.8]
[1748862900892,28.92964886,154.41,154.4,87.8]
[1748862901095,10.28,154.41,154.4,87.8]
[1748862901491,10.28,154.41,154.4,94.27668393]
[1748862902106,10.28,154.41,154.4,120.27668393]
[1748862904315,28.75104163,154.41,154.4,120.27668393]
[1748862905294,28.75104163,154.41,154.4,94.27668393]
[1748862906112,28.75104163,154.41,154.4,87.8]
[1748862906513,47.40069049,154.41,154.4,87.8]
[1748862907509,18.64964886,154.4,154.38,87.8]
[1748862907714,18.64964886,154.38,154.37,87.8]
[1748862907918,76.80069049,154.38,154.37,87.8]
[1748862908901,18.64964886,154.37,154.32,6.47988563]
[1748862909095,18.47104163,154.4,154.32,94.27988563]
[1748862909096,18.47104163,154.33,154.32,94.27988563]
[1748862909301,28.75104163,154.36,154.32,128.95103094]
[1748862909495,10.28,154.36,154.34,6.47920176]
[1748862913341,28.75104163,154.36,154.34,6.47920176]
[1748862914432,28.75104163,154.36,154.34,94.27920176]
[1748862915612,10.28,154.36,154.34,94.27920176]
[1748862916131,28.75104163,154.36,154.34,94.27920176]
[1748862919351,18.47104163,154.35,154.34,94.27920176]
[1748862919810,28.75104163,154.36,154.34,94.27920176]
[1748862922421,18.47104163,154.35,154.34,94.27920176]
[1748862922619,18.47104163,154.35,154.34,87.8]
[1748862922821,37.12069049,154.35,154.34,87.8]
[1748862923638,37.12069049,154.35,154.3,6.48071109]
[1748862923842,18.47104163,154.31,154.3,6.48071109]
[1748862924043,28.77104163,154.31,154.26,87.8]
[1748862924220,10.3,154.31,154.28,18.47104163]
[1748862924421,10.3,154.31,154.29,18.47104163]
[1748862925041,10.3,154.31,154.3,26.0]
[1748862925219,10.3,154.31,154.3,113.8]
[1748862926020,10.3,154.31,154.3,120.28088139]
[1748862927451,28.77104163,154.31,154.3,120.28088139]
[1748862927620,10.3,154.31,154.3,120.28088139]
[1748862933342,18.47104163,154.32,154.3,120.28088139]
[1748862933557,18.47104163,154.31,154.3,120.28088139]
[1748862934253,18.47104163,154.31,154.27,94.28195897]
[1748862934254,37.12069049,154.31,154.27,94.28195897]
[1748862934557,18.47104163,154.28,154.25,6.48298217]
[1748862934749,18.47104163,154.26,154.25,94.28298217]
[1748862935352,18.47104163,154.26,154.25,120.28298217]
[1748862936071,18.47104163,154.26,154.25,94.28298217]
[1748862936446,18.47104163,154.26,154.25,120.28298217]
[1748862936752,18.47104163,154.26,154.25,94.28298217]
[1748862937251,18.47104163,154.26,154.22,104.01052349]
[1748862937557,18.47104163,154.24,154.22,136.49476677]
[1748862937770,18.47104163,154.25,154.24,26.0]
[1748862938480,18.47104163,154.25,154.24,32.48340248]
[1748862939072,18.47104163,154.25,154.24,6.48340248]
[1748862939346,18.47104163,154.25,154.23,6.48368006]
[1748862939544,18.47104163,154.25,154.19,16.21279533]
[1748862939545,18.47104163,154.24,154.2,6.4850843]
[1748862939870,18.47104163,154.24,154.2,48.69779506]
[1748862940568,18.47104163,154.22,154.2,32.4850843]
[1748862940772,28.77104163,154.22,154.2,32.4850843]
[1748862941460,10.3,154.22,154.2,32.4850843]
[1748862942463,10.3,154.22,154.2,50.95612593]
[1748862942773,10.3,154.26,154.21,84.17104163]
[1748862942946,28.77104163,154.26,154.22,18.47104163]
[1748862943150,10.3,154.26,154.22,18.47104163]
[1748862943350,10.3,154.26,154.21,153.5]
[1748862943574,10.3,154.26,154.24,44.47104163]
[1748862943954,10.3,154.29,154.25,44.47104163]
[1748862944257,18.47104163,154.28,154.25,113.8]
[1748862944474,18.47104163,154.28,154.26,6.4825619]
[1748862947068,10.3,154.29,154.26,110.48896667]
[1748862947266,28.77104163,154.29,154.26,110.48896667]
[1748862947665,10.3,154.29,154.26,110.48896667]
[1748862947874,10.3,154.29,154.27,18.47104163]
[1748862948961,10.3,154.29,154.28,6.48172154]
[1748862950159,10.3,154.29,154.28,112.75276317]
[1748862950775,10.3,154.29,154.28,94.28172154]
[1748862954877,10.3,154.29,154.28,112.75276317]
[1748862957379,10.3,154.29,154.28,94.28172154]
[1748862961609,10.3,154.29,154.28,112.75276317]
[1748862962398,10.3,154.31,154.28,112.75276317]
[1748862962606,10.3,154.31,154.28,94.28172154]
[1748862964734,10.3,154.31,154.29,18.47104163]
[1748862964904,10.3,154.34,154.31,77.5]
[1748862965108,10.3,154.34,154.31,95.97104163]
[1748862966510,10.3,154.34,154.32,6.48004147]
[1748862970227,10.3,154.34,154.33,18.47104163]
[1748862970444,10.3,154.34,154.33,95.97104163]
[1748862972320,10.3,154.34,154.33,102.45066322]
[1748862972541,10.3,154.34,154.33,83.97962159]
[1748862972921,28.77104163,154.34,154.33,77.5]
[1748862973319,47.42069049,154.34,154.33,77.5]
[1748862973743,47.42069049,154.34,154.3,6.48075156]
[1748862974241,18.47104163,154.32,154.3,6.48075156]
[1748862974564,10.3,154.34,154.33,26.0]
[1748862974849,22.03762049,154.38,154.33,44.47104163]
[1748862975173,22.03762049,154.38,154.35,18.47104163]
[1748862976133,22.03762049,154.38,154.34,18.47104163]
[1748862977141,22.03762049,154.38,154.35,6.47878198]
[1748862978053,40.50866212,154.38,154.35,6.47878198]
[1748862978358,18.47104163,154.37,154.35,6.47878198]
[1748862978529,18.47104163,154.36,154.34,6.47904649]
[1748862978961,18.47104163,154.37,154.34,6.47904649]
[1748862979638,18.47104163,154.36,154.34,6.47904649]
[1748862979843,18.47104163,154.35,154.34,6.47904649]
[1748862980064,18.47104163,154.36,154.34,6.47904649]
[1748862980961,50.0,154.38,154.34,6.47904649]
[1748862981152,18.47104163,154.37,154.34,6.47904649]
[1748862982256,18.47104163,154.36,154.34,6.47904649]
[1748862982868,10.3,154.38,154.34,41.14809252]
[1748862983167,18.47104163,154.37,154.34,22.67705089]
[1748862983955,10.3,154.38,154.34,6.47904649]
[1748862983956,18.47104163,154.36,154.34,6.47904649]
[1748862984268,18.47104163,154.35,154.34,6.47904649]
[1748862984845,18.47104163,154.36,154.34,6.47904649]
[1748862985361,18.47104163,154.36,154.33,6.47962159]
[1748862985564,18.47104163,154.36,154.33,95.27962159]
[1748862985783,18.47104163,154.36,154.33,94.33471159]
[1748862986146,18.47104163,154.36,154.33,110.53376556]
[1748862986444,18.47104163,154.37,154.33,110.53376556]
[1748862987660,18.47104163,154.36,154.33,110.53376556]
[1748862988752,18.47104163,154.35,154.33,94.33471159]
[1748862989555,18.47104163,154.36,154.33,94.33471159]
[1748862990661,18.47104163,154.37,154.33,94.33471159]
[1748862991069,18.47104163,154.36,154.33,110.53376556]
[1748862992050,10.3,154.38,154.33,110.53376556]
[1748862992451,18.47104163,154.37,154.33,110.53376556]
[1748862993075,18.47104163,154.36,154.33,110.53376556]
[1748862993569,18.47104163,154.37,154.33,110.53376556]
[1748862994676,4.64103658,154.43,154.36,26.0]
[1748862994863,18.47104163,154.42,154.37,18.47104163]
[1748862995064,18.47104163,154.42,154.37,107.27104163]
[1748862995363,28.75104163,154.43,154.38,18.47104163]
[1748862995568,28.75104163,154.43,154.39,18.47104163]
[1748862996061,28.75104163,154.43,154.4,22.66839377]
[1748862996372,10.28,154.43,154.42,18.47104163]
[1748862996887,10.28,154.43,154.41,18.47104163]
[1748862997750,10.28,154.43,154.42,18.47104163]
[1748862998257,10.28,154.43,154.42,24.94688672]
[1748862998959,10.28,154.43,154.42,6.47584509]
[1748863000261,10.28,154.43,154.42,95.27584509]
[1748863000971,10.28,154.43,154.42,88.8]
[1748863001177,28.75104163,154.43,154.42,88.8]
[1748863001367,28.75104163,154.43,154.41,6.47610084]
[1748863001368,48.99309049,154.43,154.41,88.8]
[1748863001578,18.47104163,154.42,154.41,88.8]
[1748863008093,18.47104163,154.42,154.41,95.27626449]
[1748863009668,10.28,154.43,154.41,95.27626449]
[1748863009882,10.28,154.43,154.41,113.74730612]
[1748863010083,10.28,154.43,154.42,18.47104163]
[1748863011271,10.28,154.43,154.42,24.94688672]
[1748863012405,10.28,154.43,154.42,6.47584509]
[1748863012773,10.28,154.43,154.42,24.94688672]
[1748863014992,28.75104163,154.47,154.42,41.13649946]
[1748863015200,28.75104163,154.47,154.43,18.47104163]
[1748863015773,28.75104163,154.47,154.44,6.47500647]
[1748863020985,28.75104163,154.47,154.44,95.27500647]
[1748863021295,28.75104163,154.47,154.44,88.8]
[1748863021296,18.47104163,154.45,154.44,88.8]
[1748863022297,18.47104163,154.45,154.4,42.19167941]
[1748863022298,18.64964886,154.44,154.4,95.27653542]
[1748863022518,18.47104163,154.42,154.4,95.27653542]
[1748863022704,28.75104163,154.42,154.4,95.27653542]
[1748863023382,18.47104163,154.41,154.4,95.27653542]
[1748863023600,10.28,154.42,154.4,95.27653542]
[1748863023601,28.75104163,154.42,154.4,95.27653542]
[1748863024388,10.28,154.42,154.4,113.74757705]
[1748863025808,10.28,154.42,154.41,44.47104163]
[1748863026307,10.32,154.46,154.41,44.47104163]
[1748863026486,10.32,154.46,154.43,18.47104163]
[1748863026906,28.79104163,154.46,154.42,18.47104163]
[1748863027406,10.32,154.46,154.43,18.47104163]
[1748863027783,10.32,154.46,154.44,6.47500647]
[1748863029898,10.32,154.46,154.44,95.27500647]
[1748863034017,10.32,154.46,154.44,113.7460481]
[1748863034216,10.32,154.46,154.45,44.47104163]
[1748863034417,10.32,154.46,154.45,133.27104163]
[1748863034927,11.79284278,154.49,154.45,172.95104163]
[1748863035101,11.79284278,154.49,154.46,18.47104163]
[1748863035596,11.79284278,154.49,154.47,6.47374894]
[1748863037095,30.26388441,154.49,154.47,6.47374894]
[1748863038332,30.26388441,154.49,154.46,6.47416806]
[1748863038810,30.26388441,154.49,154.46,95.27416806]
[1748863043022,18.47104163,154.48,154.46,95.27416806]
[1748863043228,30.26388441,154.49,154.46,95.27416806]
[1748863043422,11.79284278,154.49,154.46,95.27416806]
[1748863043606,30.26388441,154.49,154.46,95.27416806]
[1748863047813,11.79284278,154.49,154.46,113.74520969]
[1748863048010,10.32,154.5,154.48,18.47104163]
[1748863048334,10.32,154.5,154.49,6.47291086]
[1748863049601,10.32,154.5,154.49,24.94395249]
[1748863049816,10.32,154.5,154.49,113.74395249]
[1748863050112,18.47104163,154.54,154.49,129.92622966]
[1748863050113,10.3,154.54,154.49,129.92622966]
[1748863050414,10.3,154.54,154.51,18.47104163]
[1748863051630,10.3,154.54,154.52,6.47165415]
[1748863053296,28.77104163,154.54,154.52,6.47165415]
[1748863053500,28.77104163,154.54,154.52,95.27165415]
[1748863055343,18.47104163,154.53,154.52,88.8]
[1748863055506,37.12069049,154.53,154.52,88.8]
[1748863056834,18.64964886,154.53,154.52,88.8]
[1748863057339,37.12069049,154.53,154.52,88.8]
[1748863058034,18.64964886,154.53,154.52,88.8]
[1748863058248,37.12069049,154.53,154.52,88.8]
[1748863059431,37.12069049,154.53,154.5,95.27249146]
[1748863059607,18.47104163,154.52,154.5,95.27249146]
[1748863060629,18.64964886,154.53,154.5,95.27249146]
[1748863060833,18.47104163,154.53,154.5,95.27249146]
[1748863062014,18.47104163,154.52,154.5,88.8]
[1748863062940,18.47104163,154.52,154.5,95.27247186]
[1748863065418,49.94,154.54,154.5,95.27247186]
[1748863065619,18.47104163,154.52,154.5,95.27247186]
[1748863066819,10.3,154.54,154.5,95.27247186]
[1748863067019,18.07292658,154.57,154.5,62.29370163]
[1748863067020,2.86118171,154.57,154.5,62.29370163]
[1748863067247,10.28,154.56,154.53,44.47104163]
[1748863067537,10.28,154.56,154.53,26.0]
[1748863067723,18.47104163,154.54,154.51,26.0]
[1748863067928,18.47104163,154.52,154.51,26.0]
[1748863068125,18.47104163,154.53,154.51,26.0]
[1748863069517,18.47104163,154.53,154.52,6.47165415]
[1748863070444,18.47104163,154.53,154.51,32.4719806]
[1748863070744,18.47104163,154.52,154.49,32.47256372]
[1748863070931,28.75104163,154.51,154.49,32.47256372]
[1748863071655,10.28,154.51,154.49,32.47256372]
[1748863072639,28.75104163,154.51,154.49,32.47256372]
[1748863073740,18.47104163,154.5,154.48,6.47323011]
[1748863074044,18.47104163,154.49,154.48,95.27323011]
[1748863076123,18.47104163,154.49,154.48,88.8]
[1748863076325,37.12069049,154.49,154.48,88.8]
[1748863077231,37.12069049,154.49,154.46,95.27396489]
[1748863077434,18.47104163,154.47,154.46,95.27396489]
[1748863078331,18.47104163,154.47,154.46,88.8]
[1748863078521,18.47104163,154.47,154.46,95.27416806]
[1748863082071,59.98024886,154.49,154.46,95.27416806]
[1748863082271,18.47104163,154.47,154.46,95.27416806]
[1748863082948,18.47104163,154.48,154.46,95.27416806]
[1748863083439,18.47104163,154.47,154.46,95.27416806]
[1748863083828,18.47104163,154.47,154.44,16.18747607]
[1748863083829,18.64964886,154.46,154.44,88.8]
[1748863084042,28.75104163,154.45,154.44,88.8]
[1748863084245,47.40069049,154.45,154.44,88.8]
[1748863085457,87.10069049,154.45,154.44,88.8]
[1748863085654,18.64964886,154.44,154.38,88.8]
[1748863085858,87.10069049,154.45,154.39,6.47692515]
[1748863085859,18.64964886,154.42,154.39,6.47692515]
[1748863086063,18.64964886,154.42,154.38,6.47752299]
[1748863086868,18.64964886,154.4,154.37,95.27779107]
[1748863087057,18.47104163,154.38,154.37,6.47779107]
[1748863087370,18.47104163,154.38,154.37,32.47779107]
[1748863089261,18.47104163,154.38,154.34,104.99731549]
[1748863089458,18.47104163,154.36,154.35,6.47878198]
[1748863092157,18.47104163,154.36,154.33,48.67867556]
[1748863093585,68.49104163,154.39,154.35,18.47104163]
[1748863093885,28.79104163,154.39,154.35,18.47104163]
[1748863094091,28.79104163,154.39,154.34,18.47104163]
[1748863094473,18.47104163,154.38,154.34,18.47104163]
[1748863094996,18.47104163,154.36,154.34,88.8]
[1748863095666,18.47104163,154.36,154.35,6.47878198]
[1748863095869,18.47104163,154.36,154.34,95.27906846]
[1748863096061,18.47104163,154.35,154.34,95.27906846]
[1748863097290,10.81841447,154.59,154.43,19.44]
[1748863097461,10.81841447,154.59,154.47,0.14216157]
[1748863097669,5.05337963,154.65,154.44,30.71840864]
[1748863097670,18.47104163,154.64,154.51,26.0]
[1748863097971,5.05337963,154.65,154.56,18.64964886]
[1748863098167,5.05337963,154.65,154.59,26.0]
[1748863098368,5.05337963,154.65,154.64,18.47104163]
[1748863098597,11.76,154.65,154.64,18.47104163]
[1748863098888,11.76,154.65,154.63,18.47104163]
[1748863099087,11.76,154.65,154.64,18.47104163]